Cogmind - Beta 16 @@@ ROGUE MODE // 2025.12.17 @ 20:24:05 Player: BeeseChurger Result: Destroyed by S-10 Pest with Light Assault Rifle Performance ------------- Evolutions (0) 0 Regions Visited (2) 400 Robots Destroyed (17) 85 Value Destroyed (411) 411 Prototype IDs (0) 0 Alien Tech Used (0) 0 Bonus (0) 0 TOTAL SCORE: 896 Bonus ------- None Cogmind --------- Core Integrity 0/250 Matter 448/450 Energy 249/250 System Corruption 7% Temperature Cool (0) Movement Core (250) Ox4 Location -10/Mines Parts ------- > --- POWER (1) -------- Ion Engine > --- PROPULSION (2) --- (None) > --- UTILITY (2) ------ Small Storage Unit Large Matter Pod > --- WEAPON (2) ------- (None) > --- INVENTORY (8) ---- Light Ion Engine Improved Heat Sink Peak State ------------ > --- POWER ------------ Ion Engine > --- PROPULSION ------- Light Treads Light Treads > --- UTILITY ---------- Heat Sink Improved Terrain Scanner > --- WEAPON ----------- EM Pulse Gun Medium Laser > --- INVENTORY -------- Ion Engine Light Ion Engine Small Storage Unit Large Matter Pod Datajack [Rating: 9] Favorites ----------- Power Ion Engine Engine Ion Engine Propulsion Light Treads Treads Light Treads Utility Improved Terrain Scanner Device Improved Terrain Scanner Storage Large Matter Pod Weapon Medium Laser Energy Gun Medium Laser Special Melee Weapon Datajack Build | -11 -10 -10 ------- Run | Yrd Mat Min Slots Evolved . | . . . Power . | . . . Propulsion . | . . . Utility . | . . . Weapon . | . . . Parts Attached 12 | 6 2 4 Power 2 | 1 . 1 Engine 2 | 1 . 1 Core . | . . . Reactor . | . . . Propulsion 2 | 2 . . Treads 2 | 2 . . Leg . | . . . Wheel . | . . . Hover . | . . . Flight . | . . . Utility 4 | 1 1 2 Device 2 | 1 1 . Storage 2 | . . 2 Processor . | . . . Hackware . | . . . Protection . | . . . Artifact . | . . . Weapon 4 | 2 1 1 Energy Gun 3 | 2 1 . Energy Cannon . | . . . Ballistic Gun . | . . . Ballistic Cannon . | . . . Launcher . | . . . Special Weapon . | . . . Impact Weapon . | . . . Slashing Weapon . | . . . Piercing Weapon . | . . . Special Melee Weapon 1 | . . 1 Unidentified Prototypes . | . . . Parts Lost 9 | . 2 7 Power 1 | . . 1 Propulsion 2 | . . 2 Utility 2 | . 1 1 Weapon 4 | . 1 3 Highest Loss Streak 4 | . 2 4 To Critical Strikes . | . . . Average Backups 3 | 1 4 4 Power 1 | . 1 1 Propulsion . | . . . Utility 1 | . 1 1 Weapon . | . . . Tool/Special . | . . . Unused Backups 2 | . . 2 Power 1 | . . 1 Propulsion . | . . . Utility 1 | . . 1 Weapon . | . . . Tool/Special . | . . . Average Slot Usage (%) 68 | . 81 52 Engine 11 | . 14 9 Treads 18 | . 28 6 Device 9 | . 14 2 Storage 7 | . . 16 Energy Gun 20 | . 23 16 Peak Build Rating 9 | 8 9 7 Average Rating 5 | 4 6 3 On Entrance 4 | . 8 6 Avg Prop Armor Cover (%) . | . . . Naked Turns . | . . . Heaviest Build 14 | 10 11 14 Greatest Support 40 | 40 40 40 Greatest Overweight (x) 4 | . . 4 Average Overweight (x) . | . . 1 Largest Inventory Capacity 8 | 5 5 8 Average Capacity 5 | 5 5 5 Most Carried 5 | 4 5 5 Average Carried 4 | 1 4 4 Final Capacity 8 | 5 5 8 Final Carried 5 | 2 5 2 Class Distribution -------------------- 100% | Mutant Dominant Class ---------------- Mutant | -10/Materials Mutant | -10/Mines Resources | -11 -10 -10 ----------- Run | Yrd Mat Min Matter Collected 446 | 260 75 111 Remotely . | . . . Salvage Created 521 | 39 304 178 Parts 29 | 7 21 1 Haulers Intercepted . | . . . Recyclers Shooed . | . . . Parts Field Recycled . | . . . Retrieved Matter . | . . . Parts Self-Destructed . | . . . Prevented . | . . . Parts Restored . | . . . Kills | -11 -10 -10 ------- Run | Yrd Mat Min Combat Hostiles Destroyed 14 | . 10 4 Guns 13 | . 9 4 AOE 1 | . 1 . Classes Destroyed 4 | 1 3 . Tunneler 2 | 2 . . Watcher 1 | . 1 . Swarmer 6 | . 6 . Grunt 8 | . 4 4 Best Kill Streak 8 | 2 8 2 Combat Bots Only 8 | . 8 2 Max Kills in Single Turn 2 | 1 2 1 Gunslinging . | . . . Exploded 1 | . 1 . Melee . | . . . Uniques/NPCs Destroyed . | . . . Combat | -11 -10 -10 -------- Run | Yrd Mat Min Hostile Shots Fired 116 | . 52 64 Missed 37 | . 22 15 Hits 79 | . 30 49 Projectile 79 | . 30 49 Critical Strikes 2 | . . 2 Damage Taken 926 | . 390 536 Core 258 | . 73 185 Absorbed by Shields . | . . . Core Remaining (%) 100 | 100 . . Volleys Fired 70 | 4 35 31 Largest 2 | 2 2 2 Hottest 90 | 90 90 90 Shots Fired 102 | 8 51 43 Gun 102 | 8 51 43 Cannon . | . . . Launcher . | . . . Special . | . . . Kinetic . | . . . Thermal 82 | 4 35 43 Explosive . | . . . Electromagnetic 20 | 4 16 . Robot Hit Streak 9 | 2 9 5 Robot Miss Streak 4 | 4 3 2 Penetration Max . | . . . Secondary Targets 2 | . 2 . Max Gunslinging Chain 1 | . 1 . Shots Hit Robots 69 | 3 34 32 Core Hits 29 | 2 16 11 Critical Kills . | . . . Critical Parts Destroyed . | . . . Critical Strikes 6 | . 3 3 Burn 5 | . 2 3 Corrupt 1 | . 1 . Melee Attacks 3 | . . 3 Impact . | . . . Slashing . | . . . Piercing . | . . . Sneak Attacks . | . . . Combat Hostiles . | . . . Follow-up Attacks . | . . . Damage Inflicted 936 | 62 522 352 Guns 823 | 27 446 350 Cannons . | . . . Explosions 111 | 35 76 . Melee . | . . . Ramming 2 | . . 2 Kinetic . | . . . Thermal 764 | 35 379 350 Explosive . | . . . Electromagnetic 170 | 27 143 . Impact . | . . . Slashing . | . . . Piercing . | . . . Highest Corruption 7 | . 7 7 Average Corruption 5 | . 3 7 Corruption Purged . | . . . Corruption Blocked . | . . . Effects 11 | . 2 9 Message Errors 5 | . . 5 Matter Fused 4 | . 1 3 Data Loss (minor) 1 | . 1 . Weapon Failures 1 | . . 1 Overload Shots . | . . . Overflow Damage . | . . . Projectiles . | . . . Explosions . | . . . Melee . | . . . Knockbacks . | . . . Impact . | . . . Kinetic . | . . . Secondary . | . . . Self-Inflicted Damage 1 | . . 1 Shots . | . . . Rammed 2 | . . 2 Targets Rammed 2 | . . 2 Kicked . | . . . Crushed . | . . . Highest Temperature 187 | 90 180 187 Average Temperature 83 | 40 67 108 Received Heat Transfer 450 | . 186 264 Siege Activations . | . . . Martial Activations . | . . . Shielding Activations . | . . . Robots Disrupted . | . . . Combat Hostiles . | . . . Robots Corrupted . | . . . Combat Hostiles . | . . . Parts Fried . | . . . Impact Corruptions . | . . . Robots Melted . | . . . Combat Hostiles . | . . . Parts Melted 5 | . 4 1 Heat Transferred 2265 | 50 1086 1129 Parts Sabotaged . | . . . Parts Stolen . | . . . Parts Stripped . | . . . Power Chain Reactions 2 | 1 1 . Alert | -11 -10 -10 ------- Run | Yrd Mat Min Maximum Alert Level . | . . . Low Security (%) 100 | 100 100 100 Level 1 . | . . . Level 2 . | . . . Level 3 . | . . . Level 4 . | . . . Level 5 . | . . . High Security . | . . . Max Security . | . . . Peak Influence 154 | 5 154 88 Initial 48 | . . 48 Average 38 | . 58 32 Influence Increases 374 | 10 264 100 Destroy 0b10 Robot/C 280 | . 200 80 Destroy 0b10 Robot/NC 15 | 10 5 . Destroy Leader 62 | . 42 20 Disable Machine 15 | . 15 . Destroy Structure 2 | . 2 . Influence Decreases 374 | 10 140 224 Entered New Map 76 | . . 76 Time Decay 228 | 10 120 98 Lost Part 70 | . 20 50 Squads Dispatched 2 | . 2 . Investigation . | . . . Extermination . | . . . Reinforcement 2 | . 2 . Assault . | . . . Garrison . | . . . Intercept . | . . . Searches Triggered . | . . . Construction Impeded . | . . . Haulers Reinforced . | . . . Active Scanning Responses . | . . . Cargo Convoy Interrupts . | . . . Stealth | -11 -10 -10 --------- Run | Yrd Mat Min Distress Signals . | . . . Communications Jammed . | . . . Distress Signals . | . . . Times Spotted 21 | . 14 7 Peak Tracking Total 5 | . 5 3 Tactical Retreats . | . . . Traps | -11 -10 -10 ------- Run | Yrd Mat Min Traps Triggered 5 | . 5 . Indirectly . | . . . Trap Hack Attempts . | . . . Triggered . | . . . Disarmed . | . . . Reprogrammed . | . . . Reused . | . . . Traps Extracted . | . . . Installed . | . . . Triggered . | . . . Machines | -11 -10 -10 ---------- Run | Yrd Mat Min Machines Disabled 1 | . 1 . Max in Single Turn 1 | . 1 . Machines Repaired . | . . . Machines Dismantled . | . . . Machines Sabotaged . | . . . Overloaded Fab Kills . | . . . Hacking | -11 -10 -10 --------- Run | Yrd Mat Min Machines Accessed . | . . . Terminals . | . . . Fabricators . | . . . Repair Stations . | . . . Recycling Units . | . . . Scanalyzers . | . . . Garrison Access . | . . . Total Hacks . | . . . Successful . | . . . Failed . | . . . Catastrophic . | . . . Database Lockouts . | . . . Manual . | . . . Terminals . | . . . Fabricators . | . . . Repair Stations . | . . . Recycling Units . | . . . Scanalyzers . | . . . Garrison Access . | . . . Terminal Hacks . | . . . Fabricator Hacks . | . . . Repair Station Hacks . | . . . Recycling Unit Hacks . | . . . Scanalyzer . | . . . Garrison Access Hacks . | . . . Unauthorized Hacks . | . . . Terminals . | . . . Fabricators . | . . . Repair Stations . | . . . Recycling Units . | . . . Scanalyzers . | . . . Garrison Access . | . . . Data Cores Recovered . | . . . Used . | . . . Hacking Detections . | . . . Full Trace Events . | . . . Feedback Events . | . . . Feedback Blocked . | . . . Robot Schematics Acquired . | . . . Robots Built . | . . . Authchips . | . . . Time . | . . . Total Robot Build Rating . | . . . Part Schematics Acquired . | . . . Parts Built . | . . . Authchips . | . . . Time . | . . . Total Part Build Rating . | . . . Part Studies Acquired . | . . . Parts Repaired . | . . . Time . | . . . Parts Recycled . | . . . Recycled Matter . | . . . Retrieved Matter . | . . . Retrieved Components . | . . . Parts Scanalyzed . | . . . Part Schematics Acquired . | . . . Parts Damaged . | . . . Bothacking | -11 -10 -10 ------------ Run | Yrd Mat Min Used RIF Installer . | . . . Robots Hacked 1 | . . 1 Non-combat . | . . . Combat 1 | . . 1 Robot Hacks Applied 1 | . . 1 parse_system 1 | . . 1 Relay Couplers Released . | . . . Fabnet Peak Effective % . | . . . Robots Rewired . | . . . Allies Hacked . | . . . Hacks Repelled . | . . . Allies | -11 -10 -10 -------- Run | Yrd Mat Min Total Allies . | . . . Largest Group . | . . . Highest-Rated Group . | . . . Highest-Rated Ally . | . . . Total Orders . | . . . Ally Attacks . | . . . Total Damage . | . . . Kills . | . . . Allies Corrupted . | . . . Allies Melted . | . . . Intel | -11 -10 -10 ------- Run | Yrd Mat Min Active Infowar (turns) 261 | 52 209 . Terrain 261 | 52 209 . Robot Analysis Total . | . . . Derelict Logs Recovered 1 | . . 1 Drone Launches . | . . . Drone Recoveries . | . . . Exploration | -11 -10 -10 ------------- Run | Yrd Mat Min Turns Passed 769 | 145 345 279 Spaces Moved 384 | 85 158 141 Core 144 | 17 . 127 Treads 240 | 68 158 14 Legs . | . . . Wheels . | . . . Hover . | . . . Flight . | . . . Fastest Speed 50 | 50 160 100 Average Speed 146 | 138 160 135 Slowest Speed 250 | 160 160 250 Overloaded Moves . | . . . Propulsion Burnouts . | . . . Robots Hopped . | . . . Potential Cave-ins . | . . . Cave-ins Triggered . | . . . Exploration Rate (%) 24 | 5 41 27 Regions Visited 2 Branch Regions 1 Pre-discovered Areas 1 | . . 1 Known Exits Taken . | . . . Unknown Exits Taken 2 | 1 1 . Scrap Searched 1 | . . 1 Spaces Dug . | . . . Terrain Destroyed 6 | 4 2 . Melee . | . . . Projectile . | . . . AOE 6 | 4 2 . Terrain Rammed . | . . . Walls Destroyed . | . . . Machines Disabled . | . . . Actions | -11 -10 -10 --------- Run | Yrd Mat Min Total 485 | 105 198 182 Wait 4 | 3 1 . Move 382 | 84 157 141 Hop . | . . . Pick Up 12 | 8 3 1 Fast Attach 2 | . 2 . Attach 10 | 6 . 4 Detach . | . . . Swap . | . . . Drop . | . . . Fire 70 | 4 35 31 Melee 3 | . . 3 Ram 2 | . . 2 Kick . | . . . Crush . | . . . Escape Stasis . | . . . Rewire . | . . . Trap . | . . . Miscellaneous . | . . . Route ------- -11/Scrapyard -10/Materials -10/Mines (discovered 1 exit: [*Exi]) History --------- Turn | Location | Event 7 | -11/Scrapyard | Discovered new exit (range 14) 146 | -11/Scrapyard | Entered Materials 268 | -10/Materials | Discovered new exit (range 9) 318 | -10/Materials | Build established: Mutant 398 | -10/Materials | Destroyed 8 combat bots 491 | -10/Materials | Entered Mines 525 | -10/Mines | Met a Derelict bent on vengeance 529 | -10/Mines | Learned location of Storage (-7) 566 | -10/Mines | Core integrity fell below 50% 585 | -10/Mines | Lost 4 parts (2n1u1w) 588 | -10/Mines | Core integrity fell below 20% 614 | -10/Mines | Found a hidden stash of uninstalled traps 629 | -10/Mines | Deemed a non-threat by the Exiles lab entrance 629 | -10/Mines | Discovered new exit (range 5) 770 | -10/Mines | Destroyed by S-10 Pest with Light Assault Rifle Last Messages --------------- 1O/XWD PU4V,R5WLHZG=OH1 Acquired 7 matter. System corrupted: Matter fused (-8). Acquired 28 matter. System corrupted: Matter fused (-8). Sml. Laser destroyed. Jacked S-10 Pest... Right-click on available options for more info. Keyboard players can use Shift-a~z. >>parse_system Reading system data... Jacked S-10 Pest... Command string: disable No effect. Jacked S-10 Pest... Command string: disable No effect. Slammed into S-10 Pest. Datajack destroyed. S-10 Pest destroyed. Map ----- +----------------------------------------------------+ | | | ???????????????????????????????????????????????? | | ???????????????????????????????????????????????? | | ???????????????????????????????????????????????? | | ???????????????????????????????????????????????? | | ???????????????????????????????????????????????? | | ???????????????????????????????????????????????? | | ???????????????????????????????????????????????? | | ???????????????????????????????????????????????? | | ???????????????????????????????????????????????? | | ???????????????????????##???###????????????????? | | ???????????????????????# ?????????????????? | | ???????????????????????# """ ?????????????????? | | ???????????????????????# """ ??????????????????? | | ???????????????????????# """ ??????????????????? | | ???????????????????????# ???????????????????? | | ???????????????????????# ???????????????????? | | ???????????????????????? ????????????????????? | | ???????????????????????? ????????????????????? | | ????????????????????????#s#????????????????????? | | ????????????????????????#s#????????????????????? | | ????????????????????????# #????????????????????? | | ??????????????????????### #????????????????????? | | ?????????????????????##*%=#????????????????????? | | ?????????????????????# #######??????????????? | | ????????????????????## @ #??????????????? | | ????????????????????# g #??????????????? | | ????????????????????# ##### #??????????????? | | ???????????????? ##??## #####??????????? | | ????????????? #??## ##?????????? | | ????????????##### ### ##??# % #?????????? | | ????????????????#???# #????# ## #?????????? | | ????????????????????# ?????# #### #?????????? | | ????????????????????# ?????# ???# ###?#######?? | | ????????????????????# ?????# ???# #???# #?? | | ????????????????????#?????? ??## ##### """ #?? | | ?????????????????????????? ??# """ #?? | | ?????????????????????????## #??#%%##### """ #?? | | ??????????????????????????# ???# #???# #?? | | ??????????????????????????# ???# #???# #?? | | ??????????????????????????# ??## ##??#######?? | | ??????????????????????????# ### #####??????? | | ??????????????????????????# #####??? | | ??????????????????????????# ## ##?? | | ??????????????? ?????????# ## #?? | | ??????????????? ##??????# ## #?? | | ??????????????? ?????# #### ##?? | | ???????????????? ###?##### ###### ##??? | | ??????????????????# #???## ! ####???? | | ???????????????????# #### % #??????? | +----------------------------------------------------+ Best States ------------- Heat Dissipation 35 Energy Generation 10 Energy Capacity 250 Matter Stores 450 Matter Capacity 450 Sight Range 16 Terrain Scan Range 16 Terrain Scan Density 10 Evasion (%) 50 Recoil Reduction 2 Item Schematics ----------------- None Robot Schematics ------------------ None Fabricated ------------ Nothing Repaired ---------- Nothing Studied --------- None Alien Tech Used ----------------- None Achievements -------------- None Challenges ------------ None Game ------ Seed GammaChargeStripper Manual? 0 Play Time 00:13:50 Cumulative 1.7 hours Start 2025.12.17 @ 20:07:59 End 2025.12.17 @ 20:24:05 Sessions 1 Manual Loads 0 Difficulty Rogue Special Mode None Game No. 4 Rogue 4 Adventurer 0 Explorer 0 Win Type - Total 0 Types 0/0/0/0/0/0/0/0/0/0 Lore% 2 Gallery% 3 Achievement% 4 Wizard Run 0 Options --------- Layout 1 ASCII 0 Keyboard 0 Movement Mouse Keybinds 0 Fullscreen 1 Font 48/Smallcaps Map View 50x35 Zoom Use 0% Tactical HUD 0 Map Filters NONE Filters NONE Steam 1 RUN: 8f538557-877a-4dcb-b531-e7e9e02d368f